[Event "23rd Hoogeveen Open 2019"]
[Site "Hoogeveen"]
[Date "2019.10.20"]
[Round "2.18"]
[White "Slagboom, Leandro"]
[Black "Wiersma, Eelke"]
[Result "1/2-1/2"]
[ECO "D34"]
[WhiteElo "1954"]
[BlackElo "2321"]
[Annotator "NA"]
[PlyCount "28"]
[EventDate "2019.10.19"]
[EventType "swiss"]
[EventCountry "NED"]
[SourceTitle "playchess.com"]
[Source "ChessBase"]
[SourceQuality "1"]
[TimeControl "40/5400+30:1800+30"]

1. Nf3 {[%emt 0:00:00]} Nf6 {[%emt 0:00:00]} 2. c4 {[%emt 0:00:00]} c5 {[%emt 0:00:25]} 3. b3 {[%emt 0:00:05]} e6 {[%emt 0:02:05]} 4. g3 {[%emt 0:00:18]} d5 {[%emt 0:01:58]} 5. cxd5 {[%emt 0:00:36]} exd5 {[%emt 0:00:08]} 6. Bg2 {[%emt 0:00:16]} Nc6 {[%emt 0:00:31]} 7. Bb2 {[%emt 0:00:15]} Be7 {[%emt 0:02:56]} 8. O-O {[%emt 0:00:21]} O-O {[%emt 0:00:37]} 9. d4 {[%emt 0:00:45]} Ne4 {[%emt 0:00:51]} 10. Nc3 {[%emt 0:11:55]} Bf6 {[%emt 0:00:45]} 11. e3 {[%emt 0:00:30]} Re8 {[%emt 0:00:30]} 12. Rc1 {[%emt 0:00:30]} Bg4 {[%emt 0:00:30]} 13. dxc5 {[%emt 0:00:30]} Nxc3 $11 {[%emt 0:00:30]} 14. Rxc3 {[%emt 0:01:59]} Qe7 {[%emt 0:02:45]} 1/2-1/2

[Event "23rd Hoogeveen Open 2019"]
[Site "Hoogeveen"]
[Date "2019.10.20"]
[Round "2.19"]
[White "Manush Shah"]
[Black "Van der Hagen, Loek"]
[Result "1-0"]
[ECO "E63"]
[WhiteElo "2352"]
[BlackElo "1983"]
[Annotator "ChessBase"]
[PlyCount "57"]
[EventDate "2019.10.19"]
[EventType "swiss"]
[EventCountry "NED"]
[SourceTitle "playchess.com"]
[Source "ChessBase"]
[SourceQuality "1"]
[TimeControl "40/5400+30:1800+30"]

1. d4 {[%emt 0:00:33]} Nf6 {[%emt 0:00:00]} 2. Nf3 {[%emt 0:00:05]} g6 {[%emt 0:00:00]} 3. c4 {[%emt 0:00:13]} Bg7 {[%emt 0:00:00]} 4. g3 {[%emt 0:00:09]} O-O {[%emt 0:00:07]} 5. Bg2 {[%emt 0:00:03]} d6 {[%emt 0:00:08]} 6. Nc3 {[%emt 0:00:07]} Nc6 {[%emt 0:00:20]} 7. O-O {[%emt 0:00:42]} a6 {[%emt 0:00:11]} 8. Qd3 {[%emt 0:00:37]} Rb8 {[%emt 0:01:07]} 9. d5 {[%emt 0:01:37]} Na7 {[%emt 0:04:02]} 10. a4 {[%emt 0:03:09]} c5 {[%emt 0:01:27]} 11. e4 {[%emt 0:03:13]} Qc7 {[%emt 0:02:52]} 12. a5 {[%emt 0:06:45]} Bd7 {[%emt 0:05:06]} 13. Be3 {[%emt 0:05:36]} b6 {[%emt 0:04:00]} 14. axb6 {[%emt 0:01:14]} Rxb6 {[%emt 0:00:40]} 15. Ra2 {[%emt 0:00:42]} e6 {[%emt 0:06:14]} 16. Rfa1 {[%emt 0:03:52]} Qb7 {[%emt 0:09:24]} 17. e5 {[%emt 0:10:00]} Ng4 {[%emt 0:02:15]} 18. exd6 {[%emt 0:02:58]} Nxe3 {[%emt 0:01:26]} 19. Qxe3 {[%emt 0:02:12]} exd5 {[%emt 0:02:56]} 20. Nxd5 {[%emt 0:01:50]} Rxb2 {[%emt 0:00:48]} 21. Rxb2 {[%emt 0:01:01]} Bxb2 {[%emt 0:06:09]} 22. Rb1 {[%emt 0:02:06]} Bf5 {[%emt 0:00:42]} 23. Ne7+ {[%emt 0:00:58]} Kh8 {[%emt 0:02:26]} 24. Nxf5 {[%emt 0:00:07]} gxf5 {[%emt 0:00:14]} 25. Ne5 {[%emt 0:02:29]} Qb4 {[%emt 0:03:13]} 26. Nd3 {[%emt 0:00:32]} Qb8 {[%emt 0:00:38]} 27. Rxb2 {[%emt 0:00:10]} Qxd6 {[%emt 0:00:28]} 28. Rb7 {[%emt 0:01:45]} Nc8 {[%emt 0:00:37]} 29. Qe5+ {[%emt 0:00:22]} 1-0

[Event "23rd Hoogeveen Open 2019"]
[Site "Hoogeveen"]
[Date "2019.10.20"]
[Round "2.20"]
[White "Gomes, Mary Ann"]
[Black "Stavast, Dick"]
[Result "1-0"]
[ECO "A55"]
[WhiteElo "2268"]
[BlackElo "2068"]
[Annotator "NA"]
[PlyCount "49"]
[EventDate "2019.10.19"]
[EventType "swiss"]
[EventCountry "NED"]
[SourceTitle "playchess.com"]
[Source "ChessBase"]
[SourceQuality "1"]
[TimeControl "40/5400+30:1800+30"]

1. Nf3 {[%emt 0:00:00]} d6 {[%emt 0:00:01]} 2. d4 {[%emt 0:00:35]} Nf6 {[%emt 0:00:26]} 3. c4 {[%emt 0:00:29]} Nbd7 {[%emt 0:00:14]} 4. Nc3 {[%emt 0:00:24]} e5 {[%emt 0:00:05]} 5. g3 {[%emt 0:00:07]} Be7 {[%emt 0:00:29]} 6. Bg2 {[%emt 0:00:07]} O-O {[%emt 0:00:06]} 7. O-O {[%emt 0:00:08]} c6 {[%emt 0:00:06]} 8. e4 {[%emt 0:00:11]} a6 {[%emt 0:00:26]} 9. a4 {[%emt 0:00:47]} a5 {[%emt 0:03:43]} 10. h3 {[%emt 0:00:17]} Re8 {[%emt 0:01:47]} 11. Be3 {[%emt 0:00:41]} exd4 {[%emt 0:12:15]} 12. Nxd4 {[%emt 0:00:12]} Nc5 {[%emt 0:00:48]} 13. Qc2 {[%emt 0:01:03]} Bf8 {[%emt 0:06:54]} 14. Rfd1 {[%emt 0:06:33]} Qc7 {[%emt 0:19:14]} 15. g4 {[%emt 0:11:40]} g6 {[%emt 0:11:51]} 16. Bf4 {[%emt 0:01:59]} Nfd7 {[%emt 0:02:25]} 17. Bg3 {[%emt 0:14:38]} Ne5 $14 {[%emt 0:03:35]} 18. Nce2 {[%emt 0:00:12]} Bg7 {[%emt 0:11:58]} 19. f4 {[%emt 0:00:23]} Ned7 {[%emt 0:02:33]} 20. Kh1 {[%emt 0:01:18]} Nf6 {[%emt 0:03:47]} 21. Nc3 {[%emt 0:04:47]} Qe7 {[%emt 0:03:32]} 22. Bh4 {[%emt 0:06:14]} h6 {[%emt 0:01:55]} 23. Re1 {[%emt 0:02:48]} g5 {[%emt 0:00:24]} 24. fxg5 {[%emt 0:04:29]} Nxg4 {[%emt 0:03:35]} 25. Nf5 {[%emt 0:00:11]} 1-0

[Event "23rd Hoogeveen Open 2019"]
[Site "Hoogeveen"]
[Date "2019.10.20"]
[Round "2.21"]
[White "Emans, Job"]
[Black "Noordenbos, Daan"]
[Result "1/2-1/2"]
[ECO "E99"]
[WhiteElo "2028"]
[BlackElo "2133"]
[Annotator "NA"]
[PlyCount "90"]
[EventDate "2019.10.19"]
[EventType "swiss"]
[EventCountry "NED"]
[SourceTitle "playchess.com"]
[Source "ChessBase"]
[SourceQuality "1"]
[TimeControl "40/5400+30:1800+30"]

1. d4 {[%emt 0:00:00]} Nf6 {[%emt 0:00:00]} 2. c4 {[%emt 0:00:00]} g6 {[%emt 0:00:00]} 3. Nc3 {[%emt 0:00:08]} Bg7 {[%emt 0:00:00]} 4. e4 {[%emt 0:00:19]} d6 {[%emt 0:00:00]} 5. Nf3 {[%emt 0:00:30]} O-O {[%emt 0:00:03]} 6. Be2 {[%emt 0:00:26]} e5 {[%emt 0:00:09]} 7. O-O {[%emt 0:00:28]} Nc6 {[%emt 0:00:05]} 8. d5 {[%emt 0:00:47]} Ne7 {[%emt 0:00:05]} 9. Ne1 {[%emt 0:00:12]} Nd7 {[%emt 0:00:04]} 10. Nd3 {[%emt 0:00:26]} f5 {[%emt 0:00:05]} 11. Bd2 {[%emt 0:00:33]} Nf6 {[%emt 0:00:07]} 12. f3 {[%emt 0:00:38]} f4 {[%emt 0:00:02]} 13. c5 {[%emt 0:00:24]} g5 {[%emt 0:00:35]} 14. cxd6 {[%emt 0:00:58]} cxd6 {[%emt 0:00:03]} 15. Nf2 {[%emt 0:00:11]} Ng6 {[%emt 0:02:16]} 16. Rc1 {[%emt 0:02:32]} h5 {[%emt 0:02:04] E99: King's Indian: Classical Main Line: 9 Ne1 Nd7 10 f3 f5} 17. h3 {[%emt 0:01:28]} (17. Nb5 Rf7 18. Qc2 Ne8 19. a4 Bd7 20. Qb3 Bf8 21. Rc4 a6 22. Na3 Rg7 23. a5 Nf6 24. Qb6 Qe8 25. h3 g4 26. fxg4 hxg4 27. hxg4 {0-1 (47) Kozul,Z (2601)-Radjabov,T (2644) Sarajevo 2003}) 17... Rf7 {[%emt 0:00:19]} 18. Qb3 {[%emt 0:09:29]} Bf8 {[%emt 0:03:14]} 19. Nb5 {[%emt 0:07:38]} Rg7 {[%emt 0:30:14]} 20. Qa3 $146 {[%emt 0:18:29]} ({Predecessor:} 20. Rc2 g4 21. fxg4 Nh4 22. Be1 hxg4 23. hxg4 Nh5 24. Nh1 Nxg2 25. Kxg2 {0-1 (59) Benkovic,P (2408)-Nestorovic,L (2383) Banja Vrucica 2012}) 20... g4 {[%emt 0:08:43]} 21. fxg4 {[%emt 0:04:09]} Nh4 $11 {[%emt 0:01:44]} 22. Ba5 {[%emt 0:14:41]} b6 {[%emt 0:02:20]} 23. Bb4 {[%emt 0:00:28]} hxg4 {[%emt 0:01:10]} 24. Rxc8 {[%emt 0:06:23]} Qxc8 {[%emt 0:01:35]} 25. Nxg4 {[%emt 0:00:37]} Nxg4 {[%emt 0:00:16]} 26. Bxg4 {[%emt 0:00:10]} Rxg4 {[%emt 0:00:08]} 27. hxg4 {[%emt 0:00:18]} Qxg4 {[%emt 0:00:48]} 28. Qh3 {[%emt 0:00:41]} Qxh3 {[%emt 0:05:44]} 29. gxh3 {[%emt 0:00:50]} Rc8 {[%emt 0:10:17]} 30. Bxd6 {[%emt 0:11:49]} Bxd6 {[%emt 0:05:50]} 31. Nxd6 {[%emt 0:00:16]} Rc2 {[%emt 0:00:09]} 32. b3 {[%emt 0:01:29]} Kf8 {[%emt 0:00:33]} 33. Nc4 {[%emt 0:04:10]} Rg2+ {[%emt 0:00:21]} 34. Kh1 {[%emt 0:00:05]} Re2 {[%emt 0:00:16]} 35. d6 {[%emt 0:03:51]} Ke8 {[%emt 0:00:59]} 36. Nxe5 {[%emt 0:07:16]} Rxe4 {[%emt 0:00:18]} 37. Nc6 {[%emt 0:00:57]} Kd7 {[%emt 0:06:01]} 38. Rd1 {[%emt 0:00:26]} Re2 {[%emt 0:02:50]} 39. Nb8+ {[%emt 0:03:27]} Ke6 {[%emt 0:00:18]} 40. Rd3 {[%emt 0:01:19]} Re3 {[%emt 0:05:42]} 41. Rd1 {[%emt 0:21:04]} Re2 {[%emt 0:00:15]} 42. Kg1 {[%emt 0:02:34]} Nf3+ {[%emt 0:01:31]} 43. Kf1 {[%emt 0:00:04]} Rxa2 {[%emt 0:02:23]} 44. d7 {[%emt 0:00:53]} Nh2+ {[%emt 0:00:08]} 45. Kg1 {[%emt 0:00:05]} Nf3+ {[%emt 0:00:04]} 1/2-1/2

[Event "23rd Hoogeveen Open 2019"]
[Site "Hoogeveen"]
[Date "2019.10.20"]
[Round "2.22"]
[White "Kirchei, Viktoriia"]
[Black "Mijnster, Niels"]
[Result "1-0"]
[ECO "B13"]
[WhiteElo "2051"]
[BlackElo "2145"]
[Annotator "NA"]
[PlyCount "71"]
[EventDate "2019.10.19"]
[EventType "swiss"]
[EventCountry "NED"]
[SourceTitle "playchess.com"]
[Source "ChessBase"]
[SourceQuality "1"]
[TimeControl "40/5400+30:1800+30"]

1. e4 {[%emt 0:00:00]} c6 {[%emt 0:00:00]} 2. d4 {[%emt 0:00:00]} d5 {[%emt 0:00:00]} 3. exd5 {[%emt 0:00:01]} cxd5 {[%emt 0:00:00]} 4. Bd3 {[%emt 0:00:07]} Nc6 {[%emt 0:00:02]} 5. c3 {[%emt 0:00:05]} Nf6 {[%emt 0:00:08]} 6. h3 {[%emt 0:00:06]} g6 {[%emt 0:01:00]} 7. Nf3 {[%emt 0:00:05]} Bg7 {[%emt 0:00:07]} 8. O-O {[%emt 0:00:06]} Bf5 {[%emt 0:03:22] B13: Caro-Kann: Exchange Variation and Panov-Botvinnik Attack} 9. Be2 {[%emt 0:00:11]} O-O {[%emt 0:02:20]} 10. Bf4 {[%emt 0:04:05]} Ne4 {[%emt 0:02:22]} 11. Na3 $146 {[%emt 0:01:25]} ({Predecessor:} 11. Nbd2 Re8 12. Re1 h6 13. Bf1 g5 14. Bh2 Qd7 15. Nxe4 Bxe4 {1-0 (35) Caruana,F (2828)-Shankland,S (2725) chess.com INT 2019}) 11... h6 {[%emt 0:08:37]} 12. Nc2 {[%emt 0:03:03]} g5 {[%emt 0:00:06]} 13. Bh2 {[%emt 0:00:41]} Bh7 {[%emt 0:03:25]} 14. Ne3 {[%emt 0:02:30]} e6 {[%emt 0:00:04]} 15. Nd2 {[%emt 0:02:02]} f5 {[%emt 0:08:45]} 16. Nxe4 {[%emt 0:00:20]} fxe4 {[%emt 0:00:18]} 17. Qb3 {[%emt 0:02:01]} Qd7 {[%emt 0:07:15]} 18. Bg4 {[%emt 0:02:00]} Bg6 {[%emt 0:06:08]} 19. Nxd5 {[%emt 0:01:30]} Bf5 {[%emt 0:10:12]} 20. Bxf5 {[%emt 0:01:01]} Rxf5 {[%emt 0:00:01]} 21. Nc7 {[%emt 0:00:21]} Rc8 {[%emt 0:01:45]} 22. Qxe6+ {[%emt 0:01:00]} Rf7 {[%emt 0:02:41]} 23. Qxd7 {[%emt 0:01:06]} ({Don't play} 23. Qxe4 $6 Rxc7 24. Bxc7 Qxc7 $18) 23... Rxd7 {[%emt 0:00:01]} 24. Ne6 {[%emt 0:00:09]} Bf6 {[%emt 0:01:35]} 25. Nc5 {[%emt 0:02:28]} Re7 $18 {[%emt 0:01:02]} 26. Rfe1 {[%emt 0:03:29]} Nxd4 {[%emt 0:04:40]} 27. Nxe4 {[%emt 0:02:35]} Bg7 {[%emt 0:00:19]} 28. cxd4 {[%emt 0:00:28]} Bxd4 {[%emt 0:00:01]} 29. Nc3 {[%emt 0:03:25]} Rf7 {[%emt 0:01:54]} 30. Re2 {[%emt 0:01:43]} a6 {[%emt 0:00:01]} 31. Be5 {[%emt 0:01:14]} Ba7 {[%emt 0:00:27]} 32. Rd1 {[%emt 0:02:24]} b5 {[%emt 0:03:21]} 33. Bd4 {[%emt 0:03:16]} Bb8 {[%emt 0:00:54]} 34. Nd5 {[%emt 0:01:13]} Bd6 {[%emt 0:03:10]} 35. Re6 {[%emt 0:01:59]} Rc6 {[%emt 0:00:29]} 36. Nf6+ {[%emt 0:00:37]} 1-0

[Event "23rd Hoogeveen Open 2019"]
[Site "Hoogeveen"]
[Date "2019.10.20"]
[Round "2.23"]
[White "De Boer, Bas"]
[Black "Fehr, Axel"]
[Result "1-0"]
[ECO "E63"]
[WhiteElo "2142"]
[BlackElo "2045"]
[Annotator "NA"]
[PlyCount "95"]
[EventDate "2019.10.19"]
[EventType "swiss"]
[EventCountry "NED"]
[SourceTitle "playchess.com"]
[Source "ChessBase"]
[SourceQuality "1"]
[TimeControl "40/5400+30:1800+30"]

1. d4 {[%emt 0:00:00]} Nf6 {[%emt 0:00:00]} 2. c4 {[%emt 0:00:00]} g6 {[%emt 0:00:02]} 3. g3 {[%emt 0:00:00]} Bg7 {[%emt 0:01:00]} 4. Bg2 {[%emt 0:00:00]} d6 {[%emt 0:00:56]} 5. Nf3 {[%emt 0:00:52]} O-O {[%emt 0:01:16]} 6. O-O {[%emt 0:00:08]} Nc6 {[%emt 0:03:45]} 7. Nc3 {[%emt 0:00:08]} a6 {[%emt 0:01:16]} 8. h3 {[%emt 0:00:09]} Rb8 {[%emt 0:00:52]} 9. e4 {[%emt 0:00:31]} b5 {[%emt 0:09:38]} 10. d5 {[%emt 0:02:26] E63: King's Indian: Fianchetto: Panno Variation with 7...a6} b4 {[%emt 0:09:35]} 11. Ne2 {[%emt 0:03:01]} Na5 {[%emt 0:02:08]} 12. Qc2 {[%emt 0:04:11]} b3 $146 {[%emt 0:03:18]} ({Predecessor:} 12... c6 13. Nfd4 cxd5 14. exd5 Qc7 15. b3 e5 16. dxe6 fxe6 17. a3 bxa3 {1-0 (45) Aronian,L (2812)-Nakamura,H (2789) Zuerich 2014}) 13. Qc3 {[%emt 0:03:32]} c5 {[%emt 0:05:28]} 14. Bd2 {[%emt 0:02:21]} Rb4 {[%emt 0:04:56]} 15. Qd3 {[%emt 0:02:39]} Rb8 {[%emt 0:06:43]} 16. Bxa5 {[%emt 0:03:35]} Qxa5 {[%emt 0:00:12]} 17. axb3 {[%emt 0:00:04]} Qb6 {[%emt 0:02:23]} 18. Nd2 {[%emt 0:00:08]} Nd7 {[%emt 0:03:04]} 19. Qc2 {[%emt 0:01:58]} Bh6 {[%emt 0:04:24]} 20. f4 {[%emt 0:02:01]} f5 {[%emt 0:03:30]} 21. Nc3 {[%emt 0:04:28]} Nf6 {[%emt 0:01:51]} 22. Rae1 {[%emt 0:03:12]} Nh5 {[%emt 0:05:16]} 23. Kh2 $16 {[%emt 0:02:02]} Qd8 {[%emt 0:07:32]} 24. Re2 {[%emt 0:07:05]} e5 {[%emt 0:05:57]} 25. dxe6 {[%emt 0:01:02]} Bxe6 {[%emt 0:00:48]} 26. e5 {[%emt 0:01:29]} Kh8 {[%emt 0:05:26]} 27. Nd5 {[%emt 0:01:52]} dxe5 {[%emt 0:03:57]} 28. Rxe5 {[%emt 0:00:15]} Qd6 {[%emt 0:00:53]} 29. Rfe1 {[%emt 0:00:47]} Bf7 {[%emt 0:01:13]} 30. Bf3 {[%emt 0:02:06]} Bg7 {[%emt 0:02:01]} 31. Bxh5 {[%emt 0:02:28]} gxh5 {[%emt 0:01:11]} 32. Rxf5 {[%emt 0:00:35]} Bg6 {[%emt 0:00:11]} 33. Rxf8+ {[%emt 0:02:18]} Rxf8 {[%emt 0:00:08]} 34. Qc1 {[%emt 0:01:19]} h4 {[%emt 0:00:12]} 35. Nf3 {[%emt 0:04:56]} hxg3+ {[%emt 0:00:10]} 36. Kxg3 {[%emt 0:02:13]} Bf5 {[%emt 0:05:26]} 37. Ne5 {[%emt 0:04:28]} Qh6 {[%emt 0:00:30]} 38. Ng4 {[%emt 0:00:40]} Qd6 {[%emt 0:00:47]} 39. Nge3 {[%emt 0:05:09]} Qg6+ {[%emt 0:00:31]} 40. Kh2 {[%emt 0:00:27]} Bxh3 {[%emt 0:00:30]} 41. Kxh3 {[%emt 0:32:53]} Bd4 {[%emt 0:13:39]} 42. Ng4 {[%emt 0:00:00]} Rg8 {[%emt 0:05:09]} 43. Qd1 {[%emt 0:00:00]} h5 {[%emt 0:07:12]} 44. Ne7 {[%emt 0:00:00]} Qxg4+ {[%emt 0:02:51]} 45. Qxg4 {[%emt 0:00:00]} hxg4+ {[%emt 0:00:54]} 46. Kg3 {[%emt 0:00:00]} Rb8 {[%emt 0:00:11]} 47. Kxg4 {[%emt 0:00:00]} Rxb3 {[%emt 0:00:46]} 48. Kg5 {[%emt 0:00:00] time} 1-0

[Event "23rd Hoogeveen Open 2019"]
[Site "Hoogeveen"]
[Date "2019.10.20"]
[Round "2.24"]
[White "Van der Veen, Jan"]
[Black "Sparenberg, Erik"]
[Result "0-1"]
[ECO "C88"]
[WhiteElo "2043"]
[BlackElo "2142"]
[Annotator "NA"]
[PlyCount "82"]
[EventDate "2019.10.19"]
[EventType "swiss"]
[EventCountry "NED"]
[SourceTitle "playchess.com"]
[Source "ChessBase"]
[SourceQuality "1"]
[TimeControl "40/5400+30:1800+30"]

1. e4 {[%emt 0:00:17]} e5 {[%emt 0:00:00]} 2. Nf3 {[%emt 0:00:06]} Nc6 {[%emt 0:00:00]} 3. Bb5 {[%emt 0:01:28]} a6 {[%emt 0:00:00]} 4. Ba4 {[%emt 0:00:05]} Nf6 {[%emt 0:00:00]} 5. O-O {[%emt 0:00:32]} Be7 {[%emt 0:00:00]} 6. d3 {[%emt 0:01:16]} b5 {[%emt 0:01:43]} 7. Bb3 {[%emt 0:03:57]} d6 {[%emt 0:00:10]} 8. a4 {[%emt 0:05:21]} b4 {[%emt 0:01:06]} 9. Nbd2 {[%emt 0:03:46]} O-O {[%emt 0:00:51]} 10. a5 {[%emt 0:07:28]} Rb8 {[%emt 0:06:05]} 11. Re1 {[%emt 0:08:19]} Be6 {[%emt 0:17:21]} 12. Bc4 {[%emt 0:12:08]} Qc8 {[%emt 0:02:44]} 13. c3 {[%emt 0:17:02]} Re8 {[%emt 0:06:35]} 14. Qa4 {[%emt 0:11:52]} Bxc4 {[%emt 0:05:26]} 15. Nxc4 {[%emt 0:00:38]} Qb7 {[%emt 0:10:53]} 16. Bd2 {[%emt 0:00:37]} bxc3 {[%emt 0:06:15]} 17. bxc3 {[%emt 0:00:25]} Nd7 {[%emt 0:08:34]} 18. Be3 {[%emt 0:06:03]} Bf6 {[%emt 0:05:25]} 19. Qc2 {[%emt 0:03:02]} Qb3 {[%emt 0:04:09]} 20. Qd2 {[%emt 0:03:24]} Nf8 {[%emt 0:01:09]} 21. Rec1 {[%emt 0:02:25]} Qb7 {[%emt 0:06:17]} 22. Qc2 {[%emt 0:00:45]} Qb3 {[%emt 0:02:41]} 23. Qd2 {[%emt 0:00:05]} Qb7 {[%emt 0:01:13]} 24. Qc2 {[%emt 0:00:04]} Ne7 {[%emt 0:00:14]} 25. Rcb1 {[%emt 0:01:37]} Qa8 {[%emt 0:00:02]} 26. Bd2 {[%emt 0:01:32]} Ne6 {[%emt 0:01:35]} 27. h3 {[%emt 0:01:54]} g6 {[%emt 0:00:57]} 28. Nh2 {[%emt 0:01:43]} Bg7 {[%emt 0:00:19]} 29. Nf1 {[%emt 0:00:30]} f5 {[%emt 0:01:23]} 30. exf5 {[%emt 0:01:26]} gxf5 {[%emt 0:01:11]} 31. Ng3 {[%emt 0:00:38]} d5 {[%emt 0:05:08]} 32. Nb2 {[%emt 0:01:36]} Qc6 {[%emt 0:00:35]} 33. Nh5 {[%emt 0:00:25]} Bh8 {[%emt 0:01:53]} 34. Qa4 {[%emt 0:01:54]} Nc5 {[%emt 0:01:16]} 35. Qxc6 {[%emt 0:01:56]} Nxc6 {[%emt 0:00:02]} 36. Be3 {[%emt 0:00:53]} Nb3 {[%emt 0:01:11]} 37. Ra3 {[%emt 0:00:03]} f4 {[%emt 0:00:31]} 38. Na4 {[%emt 0:00:58]} Nbxa5 {[%emt 0:02:47]} 39. Rxb8 {[%emt 0:00:25]} Rxb8 {[%emt 0:00:02]} 40. Bd2 {[%emt 0:00:34]} Rb1+ {[%emt 0:00:51]} 41. Kh2 {[%emt 0:30:12]} Nb3 {[%emt 0:13:11]} 0-1

[Event "23rd Hoogeveen Open 2019"]
[Site "Hoogeveen"]
[Date "2019.10.20"]
[Round "2.25"]
[White "Van Foreest, Machteld"]
[Black "Barthel, Ansgar"]
[Result "1/2-1/2"]
[ECO "B04"]
[WhiteElo "2142"]
[BlackElo "2037"]
[Annotator "NA"]
[PlyCount "91"]
[EventDate "2019.10.19"]
[EventType "swiss"]
[EventCountry "NED"]
[SourceTitle "playchess.com"]
[Source "ChessBase"]
[SourceQuality "1"]
[TimeControl "40/5400+30:1800+30"]

1. e4 {[%emt 0:01:16]} Nf6 {[%emt 0:00:00]} 2. e5 {[%emt 0:00:06]} Nd5 {[%emt 0:00:00]} 3. d4 {[%emt 0:00:01]} d6 {[%emt 0:00:00]} 4. c4 {[%emt 0:00:06]} Nb6 {[%emt 0:00:00]} 5. exd6 {[%emt 0:00:13]} cxd6 {[%emt 0:00:00]} 6. Nc3 {[%emt 0:00:04]} g6 {[%emt 0:00:00]} 7. Be3 {[%emt 0:00:04]} Bg7 {[%emt 0:00:01]} 8. Rc1 {[%emt 0:00:04]} O-O {[%emt 0:00:06]} 9. b3 {[%emt 0:00:02]} Bf5 {[%emt 0:00:03]} 10. Nf3 {[%emt 0:00:13]} d5 {[%emt 0:00:47]} 11. c5 {[%emt 0:02:14]} Nc8 {[%emt 0:00:05]} 12. Be2 {[%emt 0:00:08]} Nc6 {[%emt 0:00:19]} 13. O-O {[%emt 0:00:06]} Bg4 {[%emt 0:00:05]} 14. b4 {[%emt 0:00:05]} a6 {[%emt 0:00:05]} 15. Rb1 {[%emt 0:00:02]} e6 {[%emt 0:00:12]} 16. a4 {[%emt 0:02:40]} N8e7 {[%emt 0:00:10]} 17. b5 {[%emt 0:10:25]} axb5 {[%emt 0:00:07]} 18. axb5 {[%emt 0:00:45]} Na5 {[%emt 0:00:07]} 19. h3 {[%emt 0:20:43]} Bxf3 {[%emt 0:00:10]} 20. Bxf3 {[%emt 0:00:10]} Nf5 {[%emt 0:01:47]} 21. Qd3 {[%emt 0:04:43]} Nc4 {[%emt 0:15:45]} 22. Ra1 {[%emt 0:18:08]} Ncxe3 {[%emt 0:14:22]} 23. fxe3 {[%emt 0:01:22]} Bh6 {[%emt 0:00:17]} 24. Rxa8 {[%emt 0:05:16]} Qxa8 {[%emt 0:00:07]} 25. Re1 {[%emt 0:05:08]} Qa3 {[%emt 0:03:31]} 26. e4 {[%emt 0:09:33]} dxe4 {[%emt 0:02:24]} 27. Bxe4 {[%emt 0:00:16]} Nxd4 {[%emt 0:03:04]} 28. Qxd4 {[%emt 0:08:15]} Bg7 {[%emt 0:00:09]} 29. Qe3 {[%emt 0:03:48]} Qxc3 {[%emt 0:02:14]} 30. Qxc3 {[%emt 0:00:39]} Bxc3 {[%emt 0:00:07]} 31. Rd1 {[%emt 0:02:38]} Rc8 {[%emt 0:07:02]} 32. Bxb7 {[%emt 0:00:58]} Rxc5 {[%emt 0:00:07]} 33. Bc6 {[%emt 0:00:07]} e5 {[%emt 0:18:07]} 34. Rd7 {[%emt 0:04:37]} e4 {[%emt 0:10:14]} 35. Kf2 {[%emt 0:01:39]} Be5 {[%emt 0:02:47]} 36. Bxe4 {[%emt 0:00:42]} Rxb5 {[%emt 0:00:20]} 37. Bd5 {[%emt 0:00:08]} Rc5 {[%emt 0:04:11]} 38. Bxf7+ {[%emt 0:00:15]} Kf8 {[%emt 0:00:16]} 39. Be6 {[%emt 0:00:56]} Rc7 {[%emt 0:00:11]} 40. Rxc7 {[%emt 0:00:44]} Bxc7 {[%emt 0:00:06]} 41. Kf3 {[%emt 0:30:27]} Kg7 {[%emt 0:30:06]} 42. Bc4 {[%emt 0:00:00]} Bd6 {[%emt 0:00:00]} 43. Kg4 {[%emt 0:00:00]} Bc7 {[%emt 0:00:00]} 44. Bb3 {[%emt 0:00:00]} Bd6 {[%emt 0:00:00]} 45. Bc4 {[%emt 0:00:00]} Bc7 {[%emt 0:00:00]} 46. Bb3 {[%emt 0:00:00]} 1/2-1/2

[Event "23rd Hoogeveen Open 2019"]
[Site "Hoogeveen"]
[Date "2019.10.20"]
[Round "2.26"]
[White "Dev, Shah"]
[Black "Vogel, Jaap"]
[Result "1-0"]
[ECO "A91"]
[WhiteElo "2025"]
[BlackElo "2123"]
[Annotator "NA"]
[PlyCount "55"]
[EventDate "2019.10.19"]
[EventType "swiss"]
[EventCountry "NED"]
[SourceTitle "playchess.com"]
[Source "ChessBase"]
[SourceQuality "1"]
[TimeControl "40/5400+30:1800+30"]

1. d4 {[%emt 0:00:18]} e6 {[%emt 0:00:22]} 2. c4 {[%emt 0:00:09]} f5 {[%emt 0:00:15]} 3. g3 {[%emt 0:00:05]} Nf6 {[%emt 0:00:16]} 4. Bg2 {[%emt 0:00:05]} c6 {[%emt 0:01:31]} 5. Nh3 {[%emt 0:00:08]} d6 {[%emt 0:01:53]} 6. O-O {[%emt 0:00:47]} Be7 {[%emt 0:02:30]} 7. b3 {[%emt 0:01:28]} O-O {[%emt 0:05:52]} 8. Bb2 {[%emt 0:00:08]} Qc7 {[%emt 0:09:22]} 9. Nd2 {[%emt 0:02:14]} e5 {[%emt 0:05:38]} 10. e4 {[%emt 0:01:17]} Ng4 {[%emt 0:07:41]} 11. dxe5 {[%emt 0:15:22]} Nxe5 {[%emt 0:05:09]} 12. Qe2 {[%emt 0:12:38]} Na6 {[%emt 0:14:11]} 13. Nf4 {[%emt 0:13:08]} Nc5 {[%emt 0:09:21]} 14. b4 {[%emt 0:04:34]} Nxe4 {[%emt 0:22:02]} 15. Nxe4 {[%emt 0:03:25]} fxe4 {[%emt 0:00:06]} 16. Bxe4 {[%emt 0:00:33]} Bg4 {[%emt 0:01:24]} 17. f3 {[%emt 0:01:20]} Bf5 {[%emt 0:05:30]} 18. c5 {[%emt 0:09:52]} Rae8 {[%emt 0:01:01]} 19. Rad1 {[%emt 0:02:44]} Bc8 {[%emt 0:03:01]} 20. Rfe1 {[%emt 0:05:41]} Nf7 {[%emt 0:01:10]} 21. Qd3 {[%emt 0:01:46]} Ng5 {[%emt 0:00:53]} 22. cxd6 {[%emt 0:01:37]} Bxd6 {[%emt 0:00:07]} 23. Bxh7+ {[%emt 0:00:36]} Nxh7 {[%emt 0:00:25]} 24. Rxe8 {[%emt 0:05:43]} Rxe8 {[%emt 0:00:22]} 25. Qxd6 {[%emt 0:00:07]} Qxd6 {[%emt 0:00:26]} 26. Rxd6 {[%emt 0:00:24]} Kf7 {[%emt 0:00:55]} 27. Kf2 {[%emt 0:01:22]} Nf6 {[%emt 0:00:42]} 28. g4 {[%emt 0:01:42]} 1-0